[Event "Charlotte Super Swiss"]
[Site "Charlotte USA"]
[Date "2023.07.13"]
[Round "9"]
[White "Naroditsky, Daniel"]
[Black "Atanasov, Anthony"]
[Result "1-0"]
[ECO "D05"]
[WhiteElo "2619"]
[BlackElo "2367"]
[PlyCount "93"]
[EventDate "2023.07.09"]
[EventType "swiss"]
[EventRounds "9"]
[EventCountry "USA"]
[Source "ChessMix"]
[SourceDate "2023.07.20"]
[TimeControl "5400+30"]

1. Nf3 {[%emt 0:02:01]} d5 {[%emt 0:00:26]} 2. e3 {[%emt 0:00:36]} e6 {
[%emt 0:00:46]} 3. d4 {[%emt 0:00:43]} Nf6 {[%emt 0:00:21]} 4. Nbd2 {
[%emt 0:00:31]} b6 {[%emt 0:01:18]} 5. b3 {[%emt 0:01:21]} Bb7 {[%emt 0:04:09]}
6. Bd3 {[%emt 0:00:10]} Bd6 {[%emt 0:00:29]} 7. Bb2 {[%emt 0:00:14]} O-O {
[%emt 0:03:39]} 8. O-O {[%emt 0:00:28]} Qe7 {[%emt 0:00:57]} 9. a3 {
[%emt 0:02:49]} Ne4 {[%emt 0:00:31]} 10. c4 {[%emt 0:02:18]} Nxd2 {
[%emt 0:02:03]} 11. Nxd2 {[%emt 0:02:56]} Nd7 {[%emt 0:01:12]} 12. b4 {
[%emt 0:08:57]} c5 {[%emt 0:05:05]} 13. cxd5 {[%emt 0:03:36]} exd5 {
[%emt 0:04:18]} 14. dxc5 {[%emt 0:03:25]} bxc5 {[%emt 0:00:05]} 15. bxc5 {
[%emt 0:01:27]} Nxc5 {[%emt 0:01:10]} 16. Qg4 {[%emt 0:03:28]} f6 {
[%emt 0:00:26]} 17. Bf5 {[%emt 0:00:38]} Bc8 {[%emt 0:05:21]} 18. Nf3 {
[%emt 0:08:02]} Bxf5 {[%emt 0:02:37]} 19. Qxf5 {[%emt 0:00:02]} Qe4 {
[%emt 0:00:55]} 20. Qh5 {[%emt 0:00:01]} Nd3 {[%emt 0:06:39]} 21. Bd4 {
[%emt 0:00:28]} Ne5 {[%emt 0:02:03]} 22. Rfd1 {[%emt 0:00:53]} Nxf3+ {
[%emt 0:05:44]} 23. gxf3 {[%emt 0:01:08]} Qg6+ {[%emt 0:03:17]} 24. Qxg6 {
[%emt 0:02:51]} hxg6 {[%emt 0:00:07]} 25. a4 {[%emt 0:01:55]} Kf7 {
[%emt 0:03:07]} 26. Rab1 {[%emt 0:00:47]} Rfb8 {[%emt 0:01:48]} 27. a5 {
[%emt 0:03:31]} a6 {[%emt 0:06:09]} 28. Bb6 {[%emt 0:02:37]} Ke6 {
[%emt 0:00:49]} 29. Rb3 {[%emt 0:01:23]} Rh8 {[%emt 0:03:09]} 30. Rbd3 {
[%emt 0:00:09]} Bxh2+ {[%emt 0:03:49]} 31. Kg2 {[%emt 0:00:27]} g5 {
[%emt 0:04:20]} 32. Rxd5 {[%emt 0:01:17]} Be5 {[%emt 0:00:02]} 33. Kg1 {
[%emt 0:02:03]} Rh3 {[%emt 0:04:17]} 34. Rd8 {[%emt 0:00:09]} Rh8 {
[%emt 0:04:17]} 35. R8d7 {[%emt 0:00:14]} f5 {[%emt 0:02:57]} 36. Bd8 {
[%emt 0:00:57]} Rf8 {[%emt 0:10:28]} 37. Re7+ {[%emt 0:03:41]} Kf6 {
[%emt 0:00:02]} 38. Re8+ {[%emt 0:00:05]} Kf7 {[%emt 0:00:04]} 39. Rxe5 {
[%emt 0:00:04]} Raxd8 {[%emt 0:00:48]} 40. Rxd8 {[%emt 0:00:05]} Rxd8 {
[%emt 0:00:04]} 41. Rxf5+ {[%emt 0:00:05]} Kg6 {[%emt 0:00:06]} 42. Rc5 {
[%emt 0:00:27]} Rd6 {[%emt 0:01:20]} 43. Kg2 {[%emt 0:00:06]} Kf6 {
[%emt 0:02:35]} 44. Kg3 {[%emt 0:00:13]} g6 {[%emt 0:00:56]} 45. Kg4 {
[%emt 0:00:22]} Rd2 {[%emt 0:00:17]} 46. Rc6+ {[%emt 0:00:06]} Kf7 {
[%emt 0:00:03]} 47. Kg3 {[%emt 0:00:11]} 1-0